bitfinex/quotes_SOLUSD_20250719
["timestamp","ask_amount","ask_price","bid_price","bid_amount"]
[1752891483258,5.66187294,176.62,176.58,2.97998792]
[1752891483570,5.66187294,176.62,176.59,43.59998792]
[1752891484658,5.66187294,176.62,176.59,42.89998792]
[1752891485167,5.81187294,176.62,176.6,39.92]
[1752891485937,5.66187294,176.62,176.6,39.92]
[1752891486138,5.66161115,176.63,176.6,39.92]
[1752891486352,5.66124695,176.64,176.61,2.97998792]
[1752891486658,5.66124695,176.64,176.62,42.87998792]
[1752891487546,5.66124695,176.64,176.62,39.9]
[1752891487870,5.81124695,176.64,176.62,39.9]
[1752891488364,5.66124695,176.64,176.62,39.9]
[1752891490037,5.7609795,176.65,176.62,43.58998792]
[1752891490463,5.7609795,176.65,176.62,39.9]
[1752891490775,8.89096742,176.65,176.62,39.9]
[1752891491269,8.74096742,176.65,176.62,39.9]
[1752891491570,0.15,176.64,176.62,39.9]
[1752891491761,8.89096742,176.65,176.62,39.9]
[1752891492063,8.74096742,176.65,176.62,39.9]
[1752891492240,3.12998792,176.64,176.62,39.9]
[1752891492862,8.74096742,176.65,176.62,39.9]
[1752891493252,8.89096742,176.65,176.62,39.9]
[1752891494152,8.74096742,176.65,176.62,39.9]
[1752891494755,0.1,176.65,176.63,3.68998792]
[1752891494973,5.76092436,176.65,176.63,3.68998792]
[1752891495267,5.76092436,176.65,176.62,42.87998792]
[1752891495575,8.89091228,176.65,176.62,39.9]
[1752891495948,8.74091228,176.65,176.62,39.9]
[1752891496274,5.76092436,176.65,176.62,40.61]
[1752891497487,5.76092436,176.65,176.62,43.58998792]
[1752891497779,5.76092436,176.65,176.63,0.71]
[1752891497963,5.76092436,176.65,176.62,39.9]
[1752891498170,8.89091228,176.65,176.6,0.71]
[1752891498374,2.97998792,176.63,176.61,39.96]
[1752891498549,3.12998792,176.63,176.61,39.96]
[1752891498750,2.97998792,176.63,176.61,39.96]
[1752891499364,5.66187294,176.62,176.61,39.96]
[1752891499566,8.79186086,176.62,176.57,107.36467189]
[1752891499761,8.79186086,176.62,176.58,39.96]
[1752891501662,8.64186086,176.62,176.58,40.67]
[1752891502275,8.64186086,176.62,176.59,0.71]
[1752891504180,8.64186086,176.62,176.58,39.96]
[1752891504377,8.79186086,176.62,176.58,39.96]
[1752891504583,2.97998792,176.61,176.58,39.96]
[1752891505261,2.97998792,176.61,176.58,40.67]
[1752891505886,5.66251415,176.6,176.58,40.67]
[1752891507806,3.12998792,176.59,176.56,0.03]
[1752891507971,0.15,176.59,176.56,0.03]
[1752891508302,2.97998792,176.57,176.56,0.03]
[1752891508672,2.97998792,176.59,176.56,0.74]
[1752891508870,22.79878746,176.6,176.57,0.71]
[1752891509068,22.79878746,176.6,176.56,0.03]
[1752891509285,8.64250207,176.6,176.57,0.71]
[1752891509468,8.64250207,176.6,176.58,39.92]
[1752891509663,5.66251415,176.6,176.58,39.92]
[1752891509861,5.66251415,176.6,176.58,40.63]
[1752891511093,5.66251415,176.6,176.59,0.71]
[1752891511572,5.66219353,176.61,176.59,0.71]
[1752891511894,28.97998792,176.63,176.6,0.71]
[1752891512278,2.97998792,176.62,176.61,39.94]
[1752891513275,8.64186086,176.62,176.61,39.94]
[1752891514693,3.07998792,176.65,176.61,40.65]
[1752891514892,3.07998792,176.65,176.62,0.71]
[1752891515070,5.66123188,176.64,176.62,0.71]
[1752891515597,5.66123188,176.64,176.63,0.71]
[1752891516169,0.1,176.65,176.63,0.71]
[1752891516389,0.1,176.65,176.64,42.89998792]
[1752891516782,0.1,176.65,176.64,43.54998792]
[1752891517180,0.1,176.65,176.64,60.33467189]
[1752891517477,0.1,176.65,176.64,65.99590377]
[1752891517684,0.1,176.65,176.64,68.97589169]
[1752891518088,0.1,176.65,176.64,65.99590377]
[1752891518270,0.1,176.65,176.64,60.33467189]
[1752891520418,0.1,176.65,176.64,57.35468397]
[1752891520604,0.1,176.65,176.64,40.57]
[1752891520912,0.1,176.65,176.64,39.92]
[1752891521114,0.1,176.65,176.64,40.57]
[1752891521915,0.1,176.65,176.64,43.54998792]
[1752891523419,0.1,176.65,176.64,3.62998792]
[1752891523619,0.1,176.65,176.64,39.98]
[1752891524009,5.7609114,176.65,176.64,39.98]
[1752891524622,0.1,176.65,176.64,39.98]
[1752891524929,0.1,176.65,176.64,40.63]
[1752891525294,0.1,176.65,176.64,43.60998792]
[1752891535297,0.1,176.65,176.64,60.39467189]
[1752891535596,0.1,176.65,176.64,66.05590377]
[1752891542933,0.1,176.65,176.64,69.03589169]
[1752891543716,0.1,176.65,176.64,70.54879169]
[1752891544030,0.1,176.65,176.64,158.14879169]
[1752891544222,0.06,176.66,176.65,16.78468397]
[1752891544410,0.06,176.66,176.65,108.58076303]
[1752891544622,0.06,176.68,176.67,42.78468397]
[1752891544825,0.06,176.69,176.68,16.78468397]
[1752891545043,0.06,176.72,176.71,42.78468397]
[1752891545234,0.1,176.76,176.75,42.78468397]
[1752891545535,0.1,176.76,176.75,85.74467189]
[1752891545711,0.1,176.76,176.75,86.39467189]
[1752891546139,0.1,176.76,176.75,92.05238051]
[1752891546354,0.1,176.76,176.75,86.39467189]
[1752891546634,0.1,176.76,176.75,92.05238051]
[1752891546810,0.1,176.76,176.75,86.39467189]
[1752891547007,0.1,176.76,176.75,89.07239259]
[1752891547215,0.1,176.76,176.75,95.03236843]
[1752891547934,0.1,176.76,176.75,86.39467189]
[1752891548324,0.1,176.76,176.75,95.03236843]
[1752891549841,0.1,176.76,176.75,89.37465981]
[1752891550020,0.1,176.76,176.75,95.59813929]
[1752891550337,0.1,176.76,176.75,95.69813929]
[1752891551133,0.1,176.76,176.75,95.71813929]
[1752891551724,0.1,176.76,176.75,183.31813929]
[1752891552042,0.1,176.76,176.75,182.75236843]
[1752891555542,0.1,176.76,176.75,174.11467189]
[1752891556040,0.1,176.76,176.75,116.57998792]
[1752891556224,0.1,176.76,176.75,156.71998792]
[1752891556428,0.1,176.76,176.75,87.6]
[1752891556826,6.02738854,176.76,176.75,40.14]
[1752891557022,9.00737646,176.76,176.75,40.14]
[1752891559834,8.73737646,176.76,176.75,40.14]
[1752891560033,9.00737646,176.76,176.75,40.14]
[1752891560553,11.98736438,176.76,176.73,50.24950956]
[1752891560855,2.97998792,176.74,176.73,50.24950956]
[1752891561027,2.97998792,176.74,176.73,90.38950956]
[1752891561356,3.24998792,176.74,176.73,90.38950956]
[1752891562051,8.90801666,176.74,176.73,90.38950956]
[1752891562344,8.63801666,176.74,176.73,90.38950956]
[1752891562537,5.65802874,176.74,176.73,90.38950956]
[1752891562749,8.63801666,176.74,176.73,90.38950956]
[1752891562921,8.90801666,176.74,176.73,90.36950956]
[1752891564449,8.63801666,176.74,176.73,90.36950956]
[1752891564768,8.90801666,176.74,176.73,90.36950956]
[1752891565328,8.63801666,176.74,176.73,90.36950956]
[1752891566857,8.69801666,176.74,176.73,90.36950956]
[1752891567147,0.06,176.74,176.73,90.36950956]
[1752891567453,3.03998792,176.74,176.73,90.36950956]
[1752891568623,0.06,176.74,176.73,90.36950956]
[1752891569247,3.03998792,176.74,176.73,50.24950956]
[1752891569552,3.30998792,176.74,176.73,90.42950956]
[1752891570324,0.33,176.74,176.73,90.42950956]
[1752891570544,0.33,176.74,176.73,50.24950956]
[1752891570545,3.30998792,176.74,176.73,50.24950956]
[1752891570935,8.96801666,176.74,176.73,50.24950956]
[1752891571924,5.98802874,176.74,176.73,50.24950956]
[1752891572128,8.96801666,176.74,176.73,50.24950956]
[1752891573531,8.69801666,176.74,176.73,50.24950956]
[1752891576482,8.96801666,176.74,176.73,50.24950956]
[1752891577662,8.69801666,176.74,176.73,50.24950956]
[1752891581169,0.06,176.74,176.73,50.24950956]
[1752891581368,3.03998792,176.74,176.73,50.24950956]
[1752891582587,0.06,176.74,176.73,50.24950956]
[1752891582800,3.03998792,176.74,176.73,50.24950956]
[1752891583292,0.06,176.74,176.73,50.95950956]
[1752891585483,0.1,176.76,176.73,76.95950956]
[1752891585708,0.1,176.76,176.74,40.87]
[1752891586014,0.1,176.76,176.74,41.43580287]
[1752891586308,0.1,176.76,176.75,3.68998792]
[1752891587880,0.1,176.76,176.75,41.94]
[1752891588105,3.07998792,176.76,176.75,41.94]
[1752891589194,0.1,176.76,176.75,41.94]
[1752891589708,0.1,176.76,176.75,42.65]
[1752891590605,0.1,176.76,176.75,45.62998792]
[1752891591885,0.1,176.76,176.75,51.28769654]
[1752891592086,0.1,176.76,176.75,42.65]
[1752891592384,0.1,176.76,176.75,45.62998792]
[1752891592802,0.1,176.76,176.75,51.28769654]
[1752891595109,0.1,176.76,176.75,45.62998792]
[1752891595288,0.1,176.76,176.75,51.28769654]
[1752891596111,0.1,176.76,176.75,48.30770862]
[1752891596290,0.1,176.76,176.75,51.28769654]
[1752891596499,0.1,176.76,176.75,45.62998792]
[1752891598014,0.1,176.76,176.75,51.28769654]
[1752891599287,0.1,176.76,176.75,48.30770862]
[1752891599485,0.1,176.76,176.75,51.28769654]
[1752891600380,0.1,176.76,176.75,42.65]
[1752891600579,0.1,176.76,176.73,50.98950956]
[1752891600783,0.1,176.76,176.74,41.9]
[1752891601103,0.1,176.76,176.75,2.97998792]
[1752891601302,0.1,176.76,176.75,3.68998792]
[1752891602398,0.1,176.76,176.75,9.34769654]
[1752891602800,0.1,176.76,176.75,26.13238051]
[1752891605217,0.1,176.76,176.75,23.15239259]
[1752891605396,0.1,176.76,176.75,26.13238051]
[1752891607601,0.1,176.76,176.75,29.11236843]
[1752891607918,0.1,176.76,176.75,113.73238051]
[1752891608124,0.1,176.76,176.75,114.29815137]
[1752891608525,0.1,176.76,176.75,111.31816345]
[1752891608721,0.1,176.76,176.75,114.29815137]
[1752891608912,0.1,176.76,176.75,117.27813929]
[1752891609113,0.1,176.76,176.75,113.73238051]
[1752891609420,0.1,176.76,176.75,114.29815137]
[1752891611930,0.1,176.76,176.75,88.16577086]
[1752891612097,3.07998792,176.76,176.75,129.5]
[1752891612301,3.07998792,176.76,176.75,87.6]
[1752891612520,8.73737646,176.76,176.75,87.6]
[1752891613029,8.73737646,176.76,176.74,41.97]
[1752891613240,0.33,176.75,176.74,0.03]
[1752891613402,3.30998792,176.75,176.74,0.03]
[1752891613605,8.96769654,176.75,176.74,0.03]
[1752891614009,5.98770862,176.75,176.74,0.03]
[1752891614232,8.96769654,176.75,176.74,0.03]
[1752891615244,8.63769654,176.75,176.74,0.03]
[1752891616032,8.96769654,176.75,176.74,0.03]
[1752891617251,5.98770862,176.75,176.74,0.03]
[1752891617423,8.96769654,176.75,176.74,0.03]
[1752891619639,16.78468397,176.74,176.73,0.03]
[1752891619838,20.09467189,176.74,176.73,0.03]
[1752891620030,20.09467189,176.74,176.73,1e-08]
[1752891620218,26.0,176.71,176.7,1e-08]
[1752891620416,16.78468397,176.7,176.66,0.03]
[1752891620612,2.97998792,176.67,176.66,0.03]
[1752891621036,3.30998792,176.67,176.66,0.03]
[1752891622431,8.97025848,176.67,176.66,0.03]
[1752891623425,27.31514245,176.67,176.66,0.03]
[1752891624331,30.29513037,176.67,176.65,0.03]
[1752891624532,0.33,176.66,176.65,0.03]
[1752891624860,3.30998792,176.66,176.65,0.03]
[1752891625721,13.33047056,176.67,176.65,0.03]
[1752891625722,5.66027056,176.67,176.65,0.03]
[1752891625931,8.64025848,176.67,176.65,0.74]
[1752891626124,8.64025848,176.67,176.66,0.71]
[1752891626516,8.64025848,176.67,176.65,0.03]
[1752891626733,2.97998792,176.66,176.65,0.03]
[1752891628232,6.28997584,176.66,176.65,0.03]
[1752891628436,11.9505668,176.66,176.65,0.03]
[1752891630226,16.78468397,176.65,176.64,1e-08]
[1752891630431,26.0,176.62,176.6,0.03]
[1752891630655,2.97998792,176.61,176.6,0.03]
[1752891630848,3.30998792,176.61,176.6,0.03]
[1752891631831,2.97998792,176.61,176.6,0.03]
[1752891632775,31.66187294,176.62,176.6,0.03]
[1752891633074,2.97998792,176.61,176.6,0.03]
[1752891635048,8.64218145,176.61,176.6,0.03]
[1752891635262,8.97218145,176.61,176.6,0.03]
[1752891635562,28.73685334,176.61,176.6,0.03]
[1752891635743,28.73685334,176.61,176.6,1e-08]
[1752891637279,25.75686542,176.61,176.6,1e-08]
[1752891637595,67.61686542,176.61,176.6,1e-08]
[1752891637769,70.59685334,176.61,176.6,1e-08]
[1752891638183,72.16545334,176.61,176.6,1e-08]
[1752891638395,86.32093717,176.61,176.56,0.03]
[1752891638680,2.97998792,176.57,176.56,0.03]
[1752891639267,8.64346416,176.57,176.56,0.03]
[1752891642400,48.74465981,176.56,176.52,0.03]
[1752891642698,8.64474745,176.53,176.52,0.03]
[1752891643184,11.62473537,176.53,176.52,0.03]
[1752891643487,8.64474745,176.53,176.52,0.03]
[1752891643694,26.0,176.56,176.52,0.74]
[1752891643882,2.97998792,176.55,176.52,0.74]
[1752891644993,40.15675406,176.6,176.52,3.71998792]
[1752891644994,2.97998792,176.57,176.52,3.71998792]
[1752891645183,2.97998792,176.57,176.53,0.71]
[1752891645707,9.37049248,176.61,176.55,2.97998792]
[1752891645999,9.37049248,176.61,176.58,2.97998792]
[1752891646176,9.37049248,176.61,176.59,0.71]
[1752891647089,14.15103259,176.67,176.6,2.97998792]
[1752891647420,5.66059096,176.66,176.61,0.71]
[1752891647591,2.97998792,176.65,176.61,0.71]
[1752891648095,2.97998792,176.64,176.62,0.71]
[1752891648485,2.97998792,176.64,176.63,0.71]
[1752891649002,5.66155239,176.63,176.6,0.71]
[1752891649172,2.97998792,176.62,176.6,0.71]
[1752891650001,2.97998792,176.61,176.58,0.71]
[1752891650200,2.97998792,176.6,176.58,0.71]
[1752891650502,2.97998792,176.6,176.59,0.71]
[1752891650707,2.97998792,176.6,176.56,2.2532]
[1752891650999,2.97998792,176.59,176.57,0.71]
[1752891651303,2.97998792,176.62,176.58,0.71]
[1752891651680,2.97998792,176.61,176.56,4.52318792]
[1752891651992,2.97998792,176.6,176.59,0.71]
[1752891653003,40.48187931,176.66,176.59,0.71]
[1752891653193,2.97998792,176.63,176.59,3.68998792]
[1752891653374,2.97998792,176.62,176.6,0.71]
[1752891653697,5.66027056,176.67,176.61,3.68998792]
[1752891653892,2.97998792,176.66,176.62,0.71]
[1752891656010,2.97998792,176.66,176.62,3.68998792]
[1752891656303,2.97998792,176.66,176.63,0.71]
[1752891656886,0.06,176.66,176.63,0.71]
[1752891657088,0.06,176.66,176.63,6.93759159]
[1752891657425,0.06,176.66,176.64,3.68998792]
[1752891657781,0.06,176.66,176.65,0.71]
[1752891660507,3.03998792,176.66,176.62,0.71]
[1752891660703,3.03998792,176.66,176.63,0.71]
[1752891660907,3.03998792,176.66,176.64,0.71]
[1752891661096,0.06,176.66,176.62,3.68998792]
[1752891661294,0.06,176.66,176.63,0.71]
[1752891662115,0.06,176.66,176.62,2.97998792]
[1752891662296,0.06,176.66,176.64,0.71]
[1752891662914,3.03998792,176.66,176.61,41.52]
[1752891663117,3.03998792,176.66,176.64,0.71]
[1752891663418,0.06,176.66,176.64,0.71]
[1752891663712,0.06,176.66,176.65,0.71]
[1752891665018,0.06,176.66,176.63,0.71]
[1752891665517,0.06,176.66,176.64,0.71]
[1752891666202,2.97998792,176.65,176.61,0.72]
[1752891666402,2.97998792,176.64,176.61,0.72]
[1752891666997,8.64144676,176.64,176.61,0.72]
[1752891667317,5.66097611,176.65,176.62,0.72]
[1752891667518,8.64096403,176.65,176.62,0.72]
[1752891668017,0.06,176.66,176.62,3.69998792]
[1752891668199,0.06,176.66,176.63,0.72]
[1752891668599,0.06,176.66,176.63,3.69998792]
[1752891668806,0.06,176.66,176.64,0.72]
[1752891669200,0.06,176.66,176.65,0.72]
[1752891670305,0.06,176.66,176.62,2.97998792]
[1752891670506,3.03998792,176.66,176.63,0.72]
[1752891670706,0.06,176.66,176.63,0.72]
[1752891672200,8.70064971,176.66,176.64,0.72]
[1752891672733,8.70064971,176.66,176.65,0.72]
[1752891673229,0.06,176.66,176.65,0.72]
[1752891674220,0.06,176.66,176.65,51.22699046]
[1752891674411,0.06,176.66,176.65,45.56607906]
[1752891676299,0.06,176.66,176.65,44.99998792]
[1752891676500,0.06,176.66,176.65,42.02]
[1752891678227,0.06,176.66,176.65,44.99998792]
[1752891679930,0.06,176.66,176.65,47.6809114]
[1752891680125,0.06,176.66,176.65,51.22699046]
[1752891680832,0.06,176.66,176.65,45.56607906]
[1752891681013,0.06,176.66,176.65,44.99998792]
[1752891682833,0.06,176.66,176.65,50.66089932]
[1752891683134,0.06,176.66,176.65,47.6809114]
[1752891683333,0.06,176.66,176.65,50.66089932]
[1752891684814,0.06,176.66,176.65,44.99998792]
[1752891685831,0.06,176.66,176.65,0.72]
[1752891686021,0.06,176.66,176.65,41.84]
[1752891687034,0.06,176.66,176.65,44.81998792]
[1752891687535,0.06,176.66,176.65,50.48089932]
[1752891687737,0.06,176.66,176.65,51.04699046]
[1752891691341,0.06,176.66,176.65,155.43167443]
[1752891691515,0.06,176.66,176.65,154.86558329]
[1752891693229,0.06,176.66,176.65,156.47978329]
[1752891694155,0.06,176.68,176.66,16.78468397]
[1752891694361,0.06,176.68,176.67,44.58601497]
[1752891694653,0.06,176.68,176.67,152.67068686]
[1752891694842,0.06,176.68,176.67,152.10465981]
[1752891695347,0.06,176.68,176.67,157.76493037]
[1752891696058,0.06,176.7,176.68,16.78468397]
[1752891696345,0.06,176.7,176.69,47.52593882]
[1752891696523,0.06,176.7,176.69,65.00062279]
[1752891697450,0.06,176.7,176.69,70.66025265]
[1752891699845,0.06,176.7,176.69,158.26025265]
[1752891700019,0.06,176.7,176.69,157.69428967]
[1752891700630,0.06,176.72,176.71,18.40088397]
[1752891700828,0.06,176.72,176.71,62.96677082]
[1752891701029,0.06,176.72,176.71,151.19677082]
[1752891701239,0.06,176.74,176.73,42.78468397]
[1752891701451,0.06,176.74,176.73,177.87049469]
[1752891701755,0.06,176.74,176.73,177.99465981]
[1752891702137,0.06,176.74,176.73,26.0]
[1752891702328,0.06,176.74,176.73,66.98]
[1752891702646,0.06,176.74,176.73,69.95998792]
[1752891703550,0.06,176.74,176.73,66.98]
[1752891703844,0.06,176.74,176.73,68.23583488]
[1752891704048,0.06,176.74,176.73,71.2158228]
[1752891704825,0.06,176.74,176.73,76.87417169]
[1752891705849,0.06,176.74,176.73,93.65885566]
[1752891707652,0.06,176.74,176.73,181.19885566]
[1752891707854,0.06,176.74,176.73,180.63302078]
[1752891714051,0.06,176.74,176.73,139.65302078]
[1752891714357,0.06,176.74,176.73,180.49302078]
[1752891716843,0.06,176.74,176.73,136.67303286]
[1752891717050,0.06,176.74,176.73,177.47303286]
[1752891717248,0.06,176.74,176.73,180.45302078]
[1752891717452,0.06,176.74,176.73,179.76302078]
[1752891719556,0.39,176.74,176.69,87.54]
[1752891719734,3.30998792,176.73,176.7,40.8]
[1752891719936,3.30998792,176.72,176.7,40.8]
[1752891720143,0.33,176.71,176.7,40.8]
[1752891720460,3.30998792,176.73,176.7,40.8]
[1752891720639,2.97998792,176.73,176.7,40.8]
[1752891720838,0.33,176.72,176.7,40.8]
[1752891721357,0.39,176.74,176.7,40.8]
[1752891721564,0.33,176.73,176.7,40.8]
[1752891721862,0.33,176.73,176.72,0.03]
[1752891722048,0.33,176.73,176.72,40.85]
[1752891722356,3.30998792,176.73,176.72,40.85]
[1752891722762,8.96833681,176.73,176.72,40.85]
[1752891723058,15.04313681,176.73,176.72,40.85]
[1752891723563,12.06314889,176.73,176.72,40.85]
[1752891723865,15.04313681,176.73,176.72,40.85]
[1752891724169,0.06,176.74,176.72,40.85]
[1752891727945,3.36998792,176.74,176.72,40.85]
[1752891728160,3.03998792,176.74,176.72,40.85]
[1752891728366,0.33,176.73,176.72,40.85]
[1752891728957,5.71811534,176.74,176.72,40.85]
[1752891729153,2.97998792,176.73,176.72,40.85]
[1752891730749,6.04811534,176.74,176.72,40.85]
[1752891730952,2.97998792,176.73,176.72,40.85]
[1752891732255,3.30998792,176.73,176.72,40.85]
[1752891732451,0.06,176.74,176.72,40.85]
[1752891732970,0.06,176.74,176.72,41.51]
[1752891733478,0.06,176.74,176.73,0.66]
[1752891733960,0.06,176.74,176.73,3.63998792]
[1752891734363,0.06,176.74,176.73,0.66]
[1752891739182,0.06,176.74,176.73,6.31834889]
[1752891739372,0.06,176.74,176.73,9.29833681]
[1752891739564,0.06,176.74,176.73,6.31834889]
[1752891739766,0.06,176.74,176.73,9.29833681]
[1752891742075,0.06,176.74,176.73,26.64885566]
[1752891742282,0.06,176.74,176.73,114.18885566]
[1752891744563,0.06,176.74,176.73,90.51998792]
[1752891745581,0.06,176.74,176.73,96.83833681]
[1752891746793,0.06,176.74,176.73,88.2]
[1752891746959,0.06,176.74,176.73,3.63998792]
[1752891747287,0.06,176.74,176.73,9.29833681]
[1752891748876,0.06,176.74,176.73,26.08302078]
[1752891749193,0.06,176.74,176.73,113.62302078]
[1752891749578,0.06,176.74,176.73,114.18885566]
[1752891763885,0.06,176.74,176.73,117.16884358]
[1752891764083,0.06,176.74,176.73,113.62302078]
[1752891764390,0.06,176.74,176.73,114.18885566]
[1752891764890,0.06,176.74,176.73,117.16884358]
[1752891765195,0.06,176.74,176.73,116.6030087]
[1752891765574,0.06,176.74,176.73,113.62302078]
[1752891765897,0.06,176.74,176.73,114.18885566]
[1752891768392,0.06,176.74,176.73,117.16884358]
[1752891768593,0.06,176.74,176.73,116.6030087]
[1752891768791,0.06,176.75,176.74,16.78468397]
[1752891769101,0.1,176.76,176.74,152.07046268]
[1752891769296,0.1,176.76,176.75,23.42465981]
[1752891769494,0.1,176.76,176.75,29.08236843]
[1752891770183,0.1,176.76,176.75,30.65906843]
[1752891770385,0.1,176.76,176.75,31.22483929]
[1752891770700,0.06,176.78,176.77,16.78468397]
[1752891770880,0.06,176.78,176.77,148.55037874]
[1752891771075,0.06,176.78,176.77,148.66467189]
[1752891771492,0.06,176.78,176.77,154.32174039]
[1752891771801,0.06,176.78,176.77,158.75563007]
[1752891772299,0.06,176.82,176.81,42.78468397]
[1752891772504,0.06,176.82,176.81,177.59023867]
[1752891772703,0.06,176.82,176.81,179.28135981]
[1752891772903,10.75762523,176.92,176.88,2.97998792]
[1752891773203,0.33,176.91,176.89,40.74]
[1752891773407,0.33,176.9,176.89,40.74]
[1752891775701,16.73992639,176.92,176.89,40.74]
[1752891775880,0.33,176.91,176.89,40.74]
[1752891776207,2.97998792,176.9,176.89,40.74]
[1752891776407,3.30998792,176.9,176.89,40.74]
[1752891776608,0.33,176.9,176.89,40.74]
[1752891777409,16.73992639,176.92,176.89,40.74]
[1752891777597,0.33,176.91,176.89,40.74]
[1752891777998,0.33,176.9,176.89,40.74]
[1752891778491,0.1,176.92,176.89,40.74]
[1752891778895,0.33,176.91,176.89,40.74]
[1752891779913,8.73232366,176.92,176.89,40.74]
[1752891779914,3.30998792,176.9,176.89,40.74]
[1752891780081,0.33,176.9,176.89,40.74]
[1752891780496,6.08233574,176.92,176.89,40.74]
[1752891780705,0.43,176.92,176.89,40.74]
[1752891781080,3.30998792,176.91,176.89,40.74]
[1752891781286,0.33,176.9,176.89,40.74]
[1752891782010,9.06241344,176.92,176.89,40.74]
[1752891782196,0.33,176.91,176.89,40.74]
[1752891785413,0.33,176.9,176.89,40.74]
[1752891785595,0.33,176.91,176.89,40.74]
[1752891786293,8.7323325,176.92,176.89,40.74]
[1752891786502,3.36998792,176.91,176.9,40.68]
[1752891787116,9.02257963,176.91,176.9,40.68]
[1752891789517,5.71259171,176.91,176.9,40.68]
[1752891789717,0.06,176.91,176.9,40.68]
[1752891790810,0.06,176.91,176.9,41.36]
[1752891791713,0.06,176.91,176.9,40.68]
[1752891791896,0.39,176.91,176.9,40.68]
[1752891792495,0.06,176.91,176.9,40.68]
[1752891798408,0.06,176.91,176.9,41.36]
[1752891798608,0.06,176.91,176.9,40.68]
[1752891802609,3.36998792,176.91,176.9,40.68]
[1752891802825,0.39,176.91,176.9,40.68]
[1752891803107,3.36998792,176.91,176.85,117.19998792]
[1752891803309,2.97998792,176.89,176.85,114.22]
[1752891803531,2.97998792,176.89,176.86,40.68]
[1752891803532,3.30998792,176.89,176.86,40.68]
[1752891803707,0.39,176.91,176.86,40.68]
[1752891803915,2.97998792,176.89,176.86,41.36]
[1752891804410,8.63310145,176.9,176.86,41.36]
[1752891804627,8.63310145,176.9,176.87,0.68]
[1752891804822,8.63310145,176.9,176.88,40.7]
[1752891805208,0.06,176.91,176.89,0.68]
[1752891805417,0.06,176.91,176.9,40.68]
[1752891805617,5.71265951,176.91,176.9,40.68]
[1752891807584,0.06,176.91,176.9,40.68]
[1752891809021,7.79226764,176.92,176.9,40.68]
[1752891809249,2.97998792,176.92,176.9,40.68]
[1752891811138,8.63257963,176.91,176.9,40.68]
[1752891811341,8.73257963,176.91,176.9,40.68]
[1752891812357,8.73257963,176.91,176.9,40.62]
[1752891812557,8.73257963,176.91,176.82,0.03]
[1752891812558,25.84404683,176.91,176.82,0.03]
[1752891812775,2.97998792,176.84,176.82,0.03]
[1752891813056,2.97998792,176.84,176.83,40.66]
[1752891813365,8.63481714,176.84,176.83,40.66]
[1752891814939,8.73481714,176.84,176.83,40.66]
[1752891815538,8.63481714,176.84,176.83,40.66]
[1752891816170,5.65482922,176.84,176.83,40.66]
[1752891816461,8.63457145,176.85,176.83,40.66]
[1752891817977,5.65418975,176.86,176.83,40.66]
[1752891818136,2.97998792,176.85,176.83,40.66]
[1752891818956,2.97998792,176.84,176.83,40.66]
[1752891819356,8.63460081,176.85,176.83,40.66]
[1752891819866,2.97998792,176.84,176.83,40.66]
[1752891821767,8.63481714,176.84,176.83,40.66]
[1752891823174,2.97998792,176.84,176.83,40.66]
[1752891823766,8.63449739,176.85,176.83,41.36]